[Event "Titled Tuesday Blitz May 23 Early 2023"]
[White "Acikel, Mert"]
[Black "Rottenwohrer Suarez, Juan"]
[WhiteFideId "12956465"]
[BlackFideId "32068182"]
[WhiteElo "2097"]
[BlackElo "2174"]
[Result "1/2-1/2"]
[Round "02"]
[TimeControl "180+2"]
[Date "2023.05.23"]
[WhiteClock "0:00:15"]
[BlackClock "0:00:12"]

1. e4 {[%clk 0:03:00]}  c5 {[%clk 0:03:00]} 2. Nf3 {[%clk 0:03:00]}  g6 {[%clk 0:03:00]} 3. c3 {[%clk 0:03:00]}  d5 {[%clk 0:03:00]} 4. exd5 {[%clk 0:03:00]}  Qxd5 {[%clk 0:03:01]} 5. d4 {[%clk 0:02:59]}  Bg7 {[%clk 0:03:02]} 6. Be3 {[%clk 0:02:55]}  cxd4 {[%clk 0:03:01]} 7. Bxd4 {[%clk 0:02:51]}  Nf6 {[%clk 0:03:01]} 8. Qb3 {[%clk 0:02:38]}  O-O {[%clk 0:02:58]} 9. Bc4 {[%clk 0:02:36]}  Qe4+ {[%clk 0:02:56]} 10. Be2 {[%clk 0:02:36]}  Be6 {[%clk 0:02:51]} 11. Qd1 {[%clk 0:02:28]}  Nc6 {[%clk 0:02:41]} 12. Nbd2 {[%clk 0:02:27]}  Qd5 {[%clk 0:02:41]} 13. Be3 {[%clk 0:02:23]}  Ng4 {[%clk 0:02:14]} 14. Bf4 {[%clk 0:02:14]}  Nge5 {[%clk 0:02:14]} 15. O-O {[%clk 0:02:05]}  Nd3 {[%clk 0:02:13]} 16. Be3 {[%clk 0:02:02]}  Rfd8 {[%clk 0:01:49]} 17. Qc2 {[%clk 0:01:16]}  Bf5 {[%clk 0:01:49]} 18. Qb3 {[%clk 0:01:16]}  Qxb3 {[%clk 0:01:48]} 19. axb3 {[%clk 0:01:16]}  Nxb2 {[%clk 0:01:47]} 20. Rfc1 {[%clk 0:01:10]}  Nd3 {[%clk 0:01:43]} 21. Bxd3 {[%clk 0:01:11]}  Bxd3 {[%clk 0:01:41]} 22. b4 {[%clk 0:01:03]}  a6 {[%clk 0:01:38]} 23. Nb3 {[%clk 0:01:03]}  Be2 {[%clk 0:01:12]} 24. Nc5 {[%clk 0:00:55]}  Bxf3 {[%clk 0:01:07]} 25. gxf3 {[%clk 0:00:56]}  Rab8 {[%clk 0:01:07]} 26. Rab1 {[%clk 0:00:55]}  Ne5 {[%clk 0:01:04]} 27. Kg2 {[%clk 0:00:55]}  Nd3 {[%clk 0:01:02]} 28. Rd1 {[%clk 0:00:50]}  Nxc5 {[%clk 0:01:01]} 29. Bxc5 {[%clk 0:00:51]}  e6 {[%clk 0:00:52]} 30. c4 {[%clk 0:00:35]}  Rbc8 {[%clk 0:00:52]} 31. Be7 {[%clk 0:00:30]}  Rxd1 {[%clk 0:00:51]} 32. Rxd1 {[%clk 0:00:31]}  Bf8 {[%clk 0:00:32]} 33. Rd7 {[%clk 0:00:24]}  Bxe7 {[%clk 0:00:32]} 34. Rxe7 {[%clk 0:00:25]}  Rxc4 {[%clk 0:00:31]} 35. Rxb7 {[%clk 0:00:26]}  Kg7 {[%clk 0:00:30]} 36. Rb6 {[%clk 0:00:25]}  h5 {[%clk 0:00:29]} 37. Rxa6 {[%clk 0:00:25]}  Rxb4 {[%clk 0:00:29]} 38. Ra5 {[%clk 0:00:25]}  Kf6 {[%clk 0:00:29]} 39. Rc5 {[%clk 0:00:25]}  Rb7 {[%clk 0:00:28]} 40. Ra5 {[%clk 0:00:25]}  Rd7 {[%clk 0:00:29]} 41. Rb5 {[%clk 0:00:26]}  Rd5 {[%clk 0:00:29]} 42. Rb4 {[%clk 0:00:26]}  Kf5 {[%clk 0:00:28]} 43. h3 {[%clk 0:00:24]}  e5 {[%clk 0:00:29]} 44. Ra4 {[%clk 0:00:22]}  Rd4 {[%clk 0:00:28]} 45. Ra6 {[%clk 0:00:23]}  f6 {[%clk 0:00:27]} 46. Rb6 {[%clk 0:00:23]}  Kg5 {[%clk 0:00:20]} 47. Rb5 {[%clk 0:00:24]}  Rd6 {[%clk 0:00:20]} 48. Rc5 {[%clk 0:00:24]}  Re6 {[%clk 0:00:20]} 49. Rd5 {[%clk 0:00:24]}  Kf4 {[%clk 0:00:17]} 50. Ra5 {[%clk 0:00:24]}  Rc6 {[%clk 0:00:17]} 51. Ra4+ {[%clk 0:00:24]}  Kf5 {[%clk 0:00:18]} 52. Ra5 {[%clk 0:00:25]}  Rd6 {[%clk 0:00:08]} 53. Ra4 {[%clk 0:00:24]}  Re6 {[%clk 0:00:08]} 54. Rb4 {[%clk 0:00:24]}  Re7 {[%clk 0:00:09]} 55. Rc4 {[%clk 0:00:24]}  Re8 {[%clk 0:00:10]} 56. Rb4 {[%clk 0:00:25]}  Ra8 {[%clk 0:00:10]} 57. Rc4 {[%clk 0:00:25]}  Ke6 {[%clk 0:00:10]} 58. Rc6+ {[%clk 0:00:25]}  Kf5 {[%clk 0:00:10]} 59. Rc4 {[%clk 0:00:26]}  Ra5 {[%clk 0:00:09]} 60. Rc6 {[%clk 0:00:23]}  Rd5 {[%clk 0:00:09]} 61. Rc4 {[%clk 0:00:23]}  Rd4 {[%clk 0:00:10]} 62. Rc6 {[%clk 0:00:23]}  Kg5 {[%clk 0:00:10]} 63. Rc5 {[%clk 0:00:23]}  Rf4 {[%clk 0:00:08]} 64. Kg3 {[%clk 0:00:20]}  h4+ {[%clk 0:00:02]} 65. Kg2 {[%clk 0:00:20]}  Rd4 {[%clk 0:00:03]} 66. Rb5 {[%clk 0:00:20]}  Kf5 {[%clk 0:00:03]} 67. Rb6 {[%clk 0:00:20]}  g5 {[%clk 0:00:03]} 68. Rb8 {[%clk 0:00:20]}  Kg6 {[%clk 0:00:04]} 69. Rb6 {[%clk 0:00:20]}  Rf4 {[%clk 0:00:05]} 70. Re6 {[%clk 0:00:17]}  Kf5 {[%clk 0:00:05]} 71. Re8 {[%clk 0:00:17]}  Rd4 {[%clk 0:00:05]} 72. Re7 {[%clk 0:00:17]}  Rd2 {[%clk 0:00:06]} 73. Rb7 {[%clk 0:00:17]}  Rc2 {[%clk 0:00:06]} 74. Rb4 {[%clk 0:00:18]}  Rc5 {[%clk 0:00:06]} 75. Ra4 {[%clk 0:00:18]}  Rd5 {[%clk 0:00:07]} 76. Re4 {[%clk 0:00:18]}  Rd4 {[%clk 0:00:07]} 77. Re2 {[%clk 0:00:19]}  Kf4 {[%clk 0:00:07]} 78. Ra2 {[%clk 0:00:18]}  f5 {[%clk 0:00:07]} 79. Ra5 {[%clk 0:00:19]}  Rd3 {[%clk 0:00:07]} 80. Ra4+ {[%clk 0:00:19]}  e4 {[%clk 0:00:07]} 81. fxe4 {[%clk 0:00:20]}  fxe4 {[%clk 0:00:08]} 82. Ra8 {[%clk 0:00:19]}  Rd2 {[%clk 0:00:08]} 83. Rf8+ {[%clk 0:00:19]}  Ke5 {[%clk 0:00:09]} 84. Re8+ {[%clk 0:00:20]}  Kf5 {[%clk 0:00:09]} 85. Re7 {[%clk 0:00:21]}  Re2 {[%clk 0:00:08]} 86. Re8 {[%clk 0:00:20]}  e3 {[%clk 0:00:07]} 87. Rxe3 {[%clk 0:00:14]}  Rxe3 {[%clk 0:00:03]} 88. fxe3 {[%clk 0:00:15]}  Ke4 {[%clk 0:00:03]} 89. Kf2 {[%clk 0:00:15]}  Ke5 {[%clk 0:00:04]} 90. Kf3 {[%clk 0:00:15]}  Kf5 {[%clk 0:00:04]} 91. e4+ {[%clk 0:00:16]}  Ke5 {[%clk 0:00:05]} 92. Kg4 {[%clk 0:00:10]}  Kxe4 {[%clk 0:00:05]} 93. Kxg5 {[%clk 0:00:10]}  Ke5 {[%clk 0:00:05]} 94. Kxh4 {[%clk 0:00:11]}  Kf6 {[%clk 0:00:06]} 95. Kg4 {[%clk 0:00:12]}  Kg7 {[%clk 0:00:07]} 96. h4 {[%clk 0:00:13]}  Kg8 {[%clk 0:00:08]} 97. h5 {[%clk 0:00:14]}  Kh8 {[%clk 0:00:09]} 98. h6 {[%clk 0:00:14]}  Kg8 {[%clk 0:00:10]} 99. h7+ {[%clk 0:00:15]}  Kh8 {[%clk 0:00:11]} 100. Kf5 {[%clk 0:00:15]}  Kxh7 {[%clk 0:00:12]} 1/2-1/2


[Site "https://www.chess.com"]

[Event "Titled Tuesday Blitz May 23 Early 2023"]
[White "Srdanovic, Jovana"]
[Black "ritanovikova"]
[WhiteFideId "954810"]
[WhiteElo "2169"]
[BlackElo "2167"]
[Result "1-0"]
[Round "02"]
[TimeControl "180+2"]
[Date "2023.05.23"]
[WhiteClock "0:00:48"]
[BlackClock "0:00:21"]

1. d4 {[%clk 0:03:00]}  d5 {[%clk 0:03:00]} 2. c4 {[%clk 0:03:00]}  e6 {[%clk 0:03:00]} 3. Nc3 {[%clk 0:03:00]}  Bb4 {[%clk 0:03:00]} 4. Nf3 {[%clk 0:02:56]}  c6 {[%clk 0:02:52]} 5. cxd5 {[%clk 0:02:51]}  exd5 {[%clk 0:02:51]} 6. Bd2 {[%clk 0:02:50]}  Nf6 {[%clk 0:02:50]} 7. e3 {[%clk 0:02:51]}  O-O {[%clk 0:02:50]} 8. Bd3 {[%clk 0:02:51]}  Bg4 {[%clk 0:02:48]} 9. h3 {[%clk 0:02:49]}  Bh5 {[%clk 0:02:48]} 10. Qc2 {[%clk 0:02:50]}  Bg6 {[%clk 0:02:47]} 11. Ne5 {[%clk 0:02:47]}  Bxd3 {[%clk 0:02:45]} 12. Qxd3 {[%clk 0:02:48]}  Nbd7 {[%clk 0:02:43]} 13. f4 {[%clk 0:02:48]}  Bxc3 {[%clk 0:02:41]} 14. Bxc3 {[%clk 0:02:45]}  Ne4 {[%clk 0:02:40]} 15. O-O {[%clk 0:02:43]}  Nxe5 {[%clk 0:02:38]} 16. fxe5 {[%clk 0:02:41]}  Qg5 {[%clk 0:02:31]} 17. Bb4 {[%clk 0:02:40]}  Rfe8 {[%clk 0:02:29]} 18. Rf4 {[%clk 0:02:37]}  a5 {[%clk 0:02:12]} 19. Ba3 {[%clk 0:02:35]}  b5 {[%clk 0:02:10]} 20. b3 {[%clk 0:02:35]}  b4 {[%clk 0:02:09]} 21. Bb2 {[%clk 0:02:35]}  f6 {[%clk 0:01:54]} 22. exf6 {[%clk 0:02:32]}  Nxf6 {[%clk 0:01:54]} 23. Raf1 {[%clk 0:02:30]}  Re4 {[%clk 0:01:49]} 24. Bc1 {[%clk 0:02:16]}  Rae8 {[%clk 0:01:47]} 25. Bd2 {[%clk 0:02:15]}  Rxf4 {[%clk 0:01:42]} 26. Rxf4 {[%clk 0:02:16]}  Ne4 {[%clk 0:01:33]} 27. Be1 {[%clk 0:02:16]}  Nf6 {[%clk 0:01:24]} 28. Bh4 {[%clk 0:02:13]}  Qh6 {[%clk 0:01:08]} 29. Bxf6 {[%clk 0:02:09]}  gxf6 {[%clk 0:01:09]} 30. Kf2 {[%clk 0:01:06]}  Kf7 {[%clk 0:01:01]} 31. Qa6 {[%clk 0:01:02]}  Qg6 {[%clk 0:00:55]} 32. Qxc6 {[%clk 0:00:59]}  Qg5 {[%clk 0:00:45]} 33. Qc7+ {[%clk 0:00:51]}  Re7 {[%clk 0:00:44]} 34. Qxa5 {[%clk 0:00:50]}  Qg6 {[%clk 0:00:30]} 35. Qxd5+ {[%clk 0:00:50]}  Kg7 {[%clk 0:00:21]} 36. Rg4 {[%clk 0:00:48]} 1-0


[Site "https://www.chess.com"]

[Event "Titled Tuesday Blitz May 23 Early 2023"]
[White "Larina, Maria"]
[Black "Gurevich, Dmitry"]
[WhiteFideId "24113182"]
[BlackFideId "2000407"]
[WhiteElo "1848"]
[BlackElo "2506"]
[Result "0-1"]
[Round "02"]
[TimeControl "180+2"]
[Date "2023.05.23"]
[WhiteClock "0:00:04"]
[BlackClock "0:00:07"]

1. e4 {[%clk 0:03:00]}  c5 {[%clk 0:02:50]} 2. Nc3 {[%clk 0:03:00]}  g6 {[%clk 0:02:47]} 3. g3 {[%clk 0:02:58]}  Bg7 {[%clk 0:02:46]} 4. Bg2 {[%clk 0:02:59]}  Nc6 {[%clk 0:02:46]} 5. d3 {[%clk 0:02:59]}  Rb8 {[%clk 0:02:44]} 6. Be3 {[%clk 0:02:58]}  d6 {[%clk 0:02:43]} 7. Qd2 {[%clk 0:02:58]}  b5 {[%clk 0:02:42]} 8. Nge2 {[%clk 0:02:40]}  b4 {[%clk 0:02:42]} 9. Nd1 {[%clk 0:02:35]}  h5 {[%clk 0:02:40]} 10. Bg5 {[%clk 0:02:25]}  f6 {[%clk 0:02:33]} 11. Be3 {[%clk 0:02:20]}  h4 {[%clk 0:02:33]} 12. h3 {[%clk 0:01:48]}  hxg3 {[%clk 0:02:32]} 13. fxg3 {[%clk 0:01:38]}  Nh6 {[%clk 0:02:23]} 14. Nf2 {[%clk 0:01:13]}  Nf7 {[%clk 0:02:10]} 15. Nf4 {[%clk 0:01:01]}  Nfe5 {[%clk 0:02:06]} 16. c3 {[%clk 0:00:56]}  bxc3 {[%clk 0:02:02]} 17. bxc3 {[%clk 0:00:57]}  Qd7 {[%clk 0:01:52]} 18. Qe2 {[%clk 0:00:45]}  Ba6 {[%clk 0:01:44]} 19. O-O {[%clk 0:00:36]}  Bh6 {[%clk 0:01:30]} 20. Nd5 {[%clk 0:00:33]}  Bg7 {[%clk 0:01:21]} 21. Rfb1 {[%clk 0:00:22]}  Kf7 {[%clk 0:01:10]} 22. Qd2 {[%clk 0:00:18]}  Rh7 {[%clk 0:00:51]} 23. Qc2 {[%clk 0:00:18]}  Rbh8 {[%clk 0:00:46]} 24. Rb2 {[%clk 0:00:17]}  Rxh3 {[%clk 0:00:29]} 25. Nxh3 {[%clk 0:00:16]}  Bxd3 {[%clk 0:00:22]} 26. Qd2 {[%clk 0:00:14]}  Rxh3 {[%clk 0:00:20]} 27. Bxh3 {[%clk 0:00:15]}  Qxh3 {[%clk 0:00:17]} 28. Qg2 {[%clk 0:00:14]}  Qg4 {[%clk 0:00:15]} 29. Re1 {[%clk 0:00:12]}  Bxe4 {[%clk 0:00:12]} 30. Qe2 {[%clk 0:00:11]}  Nf3+ {[%clk 0:00:12]} 31. Kf2 {[%clk 0:00:10]}  Bxd5 {[%clk 0:00:10]} 32. Rb7 {[%clk 0:00:04]}  Qh3 {[%clk 0:00:07]} 0-1


[Site "https://www.chess.com"]

[Event "Titled Tuesday Blitz May 23 Early 2023"]
[White "dDobravcan"]
[Black "Mackster23"]
[WhiteElo "2130"]
[BlackElo "2440"]
[Result "0-1"]
[Round "02"]
[TimeControl "180+2"]
[Date "2023.05.23"]
[WhiteClock "0:00:00"]
[BlackClock "0:00:04"]

1. d4 {[%clk 0:03:00]}  d5 {[%clk 0:02:43]} 2. Nc3 {[%clk 0:02:59]}  Nf6 {[%clk 0:02:42]} 3. Bf4 {[%clk 0:03:00]}  e6 {[%clk 0:02:42]} 4. e3 {[%clk 0:02:59]}  Bd6 {[%clk 0:02:39]} 5. Nf3 {[%clk 0:02:54]}  O-O {[%clk 0:02:34]} 6. Bd3 {[%clk 0:02:52]}  c5 {[%clk 0:02:25]} 7. dxc5 {[%clk 0:02:51]}  Bxc5 {[%clk 0:02:24]} 8. O-O {[%clk 0:02:52]}  Nc6 {[%clk 0:02:23]} 9. e4 {[%clk 0:02:51]}  d4 {[%clk 0:02:10]} 10. Na4 {[%clk 0:02:32]}  Nh5 {[%clk 0:02:07]} 11. Bd2 {[%clk 0:02:15]}  Bd6 {[%clk 0:02:06]} 12. Re1 {[%clk 0:02:01]}  Nf4 {[%clk 0:01:48]} 13. Bf1 {[%clk 0:01:59]}  Ng6 {[%clk 0:01:46]} 14. c3 {[%clk 0:01:53]}  dxc3 {[%clk 0:01:41]} 15. Bxc3 {[%clk 0:01:46]}  Qe7 {[%clk 0:01:34]} 16. a3 {[%clk 0:01:43]}  Rd8 {[%clk 0:01:31]} 17. Qb3 {[%clk 0:01:31]}  b6 {[%clk 0:01:28]} 18. e5 {[%clk 0:01:28]}  Bc7 {[%clk 0:01:24]} 19. Rac1 {[%clk 0:01:12]}  Bb7 {[%clk 0:01:18]} 20. Qc4 {[%clk 0:01:02]}  Rac8 {[%clk 0:01:13]} 21. Qg4 {[%clk 0:01:02]}  a6 {[%clk 0:00:58]} 22. b4 {[%clk 0:00:47]}  Na7 {[%clk 0:00:41]} 23. Bd4 {[%clk 0:00:36]}  Bxf3 {[%clk 0:00:34]} 24. gxf3 {[%clk 0:00:33]}  h5 {[%clk 0:00:33]} 25. Qe4 {[%clk 0:00:29]}  Nb5 {[%clk 0:00:17]} 26. Bxb6 {[%clk 0:00:26]}  Bxb6 {[%clk 0:00:15]} 27. Nxb6 {[%clk 0:00:23]}  Rxc1 {[%clk 0:00:15]} 28. Rxc1 {[%clk 0:00:22]}  Qg5+ {[%clk 0:00:15]} 29. Bg2 {[%clk 0:00:17]}  Qxc1+ {[%clk 0:00:16]} 30. Bf1 {[%clk 0:00:17]}  Nf4 {[%clk 0:00:12]} 31. Nc4 {[%clk 0:00:14]}  Rd1 {[%clk 0:00:08]} 32. Qa8+ {[%clk 0:00:10]}  Kh7 {[%clk 0:00:08]} 33. Ne3 {[%clk 0:00:09]}  Nc3 {[%clk 0:00:06]} 34. Qxa6 {[%clk 0:00:04]}  Rxf1+ {[%clk 0:00:03]} 35. Nxf1 {[%clk 0:00:00]}  Nce2+ {[%clk 0:00:04]} 0-1


[Site "https://www.chess.com"]

[Event "Titled Tuesday Blitz May 23 Early 2023"]
[White "Yeritsyan, Hayk"]
[Black "Cramling Bellon, Anna"]
[WhiteFideId "13307320"]
[BlackFideId "32009232"]
[WhiteElo "2439"]
[BlackElo "1976"]
[Result "1-0"]
[Round "02"]
[TimeControl "180+2"]
[Date "2023.05.23"]
[WhiteClock "0:01:11"]
[BlackClock "0:00:03"]

1. b3 {[%clk 0:03:00]}  e5 {[%clk 0:02:59]} 2. Bb2 {[%clk 0:02:56]}  Nc6 {[%clk 0:02:59]} 3. e3 {[%clk 0:02:55]}  Nf6 {[%clk 0:02:59]} 4. Bb5 {[%clk 0:02:55]}  Bd6 {[%clk 0:03:00]} 5. Nf3 {[%clk 0:02:53]}  e4 {[%clk 0:02:57]} 6. Nd4 {[%clk 0:02:49]}  a6 {[%clk 0:02:51]} 7. Be2 {[%clk 0:02:39]}  Nxd4 {[%clk 0:02:43]} 8. Bxd4 {[%clk 0:02:37]}  c5 {[%clk 0:02:42]} 9. Bb2 {[%clk 0:02:35]}  Bc7 {[%clk 0:02:43]} 10. c4 {[%clk 0:02:33]}  b5 {[%clk 0:02:35]} 11. Nc3 {[%clk 0:02:28]}  b4 {[%clk 0:02:31]} 12. Nd5 {[%clk 0:02:26]}  Nxd5 {[%clk 0:02:29]} 13. cxd5 {[%clk 0:02:27]}  Qg5 {[%clk 0:02:28]} 14. O-O {[%clk 0:02:26]}  Qxd5 {[%clk 0:02:27]} 15. d3 {[%clk 0:02:22]}  Qd6 {[%clk 0:01:58]} 16. g3 {[%clk 0:02:20]}  Bb7 {[%clk 0:01:58]} 17. dxe4 {[%clk 0:02:03]}  Bxe4 {[%clk 0:01:52]} 18. Qxd6 {[%clk 0:01:54]}  Bxd6 {[%clk 0:01:53]} 19. Bxg7 {[%clk 0:01:54]}  Rg8 {[%clk 0:01:53]} 20. Bb2 {[%clk 0:01:54]}  f5 {[%clk 0:01:44]} 21. Rfd1 {[%clk 0:01:47]}  Ke7 {[%clk 0:01:44]} 22. Rd2 {[%clk 0:01:44]}  f4 {[%clk 0:01:36]} 23. Rad1 {[%clk 0:01:43]}  Rg6 {[%clk 0:01:36]} 24. exf4 {[%clk 0:01:43]}  Ra7 {[%clk 0:01:07]} 25. Bh5 {[%clk 0:01:26]}  Rh6 {[%clk 0:01:07]} 26. Bg4 {[%clk 0:01:27]}  Rg6 {[%clk 0:00:56]} 27. f3 {[%clk 0:01:24]}  Bc6 {[%clk 0:00:26]} 28. f5 {[%clk 0:01:19]}  Rg8 {[%clk 0:00:10]} 29. Rxd6 {[%clk 0:01:17]}  h5 {[%clk 0:00:09]} 30. Bf6+ {[%clk 0:01:11]}  Kf7 {[%clk 0:00:08]} 31. Bxh5+ {[%clk 0:01:12]}  Kf8 {[%clk 0:00:07]} 32. Rxc6 {[%clk 0:01:10]}  dxc6 {[%clk 0:00:03]} 33. Rd8# {[%clk 0:01:11]} 1-0


[Site "https://www.chess.com"]

[Event "Titled Tuesday Blitz May 23 Early 2023"]
[White "Putri, Regita Desyari"]
[Black "Toktomushev, Teimur"]
[WhiteFideId "7109083"]
[BlackFideId "14176726"]
[WhiteElo "1930"]
[BlackElo "2116"]
[Result "0-1"]
[Round "02"]
[TimeControl "180+2"]
[Date "2023.05.23"]
[WhiteClock "0:00:02"]
[BlackClock "0:00:09"]

1. d4 {[%clk 0:02:59]}  d5 {[%clk 0:03:00]} 2. c4 {[%clk 0:02:59]}  e6 {[%clk 0:03:00]} 3. Nf3 {[%clk 0:02:58]}  Nf6 {[%clk 0:03:00]} 4. g3 {[%clk 0:02:58]}  Bb4+ {[%clk 0:02:59]} 5. Bd2 {[%clk 0:02:57]}  Be7 {[%clk 0:02:59]} 6. Qc2 {[%clk 0:02:55]}  O-O {[%clk 0:02:59]} 7. Bg2 {[%clk 0:02:55]}  c6 {[%clk 0:02:59]} 8. O-O {[%clk 0:02:55]}  b6 {[%clk 0:03:00]} 9. Bf4 {[%clk 0:02:41]}  Ba6 {[%clk 0:02:57]} 10. b3 {[%clk 0:02:37]}  Nbd7 {[%clk 0:02:45]} 11. Nbd2 {[%clk 0:02:36]}  c5 {[%clk 0:02:40]} 12. e4 {[%clk 0:01:28]}  dxc4 {[%clk 0:02:27]} 13. bxc4 {[%clk 0:01:16]}  cxd4 {[%clk 0:02:21]} 14. Nxd4 {[%clk 0:01:13]}  Rc8 {[%clk 0:01:44]} 15. Rfd1 {[%clk 0:01:04]}  e5 {[%clk 0:01:40]} 16. Nf5 {[%clk 0:00:39]}  exf4 {[%clk 0:01:38]} 17. gxf4 {[%clk 0:00:39]}  Nh5 {[%clk 0:01:14]} 18. Qb3 {[%clk 0:00:26]}  Nxf4 {[%clk 0:01:04]} 19. Qg3 {[%clk 0:00:27]}  Ng6 {[%clk 0:00:39]} 20. Rac1 {[%clk 0:00:21]}  Qc7 {[%clk 0:00:31]} 21. Qb3 {[%clk 0:00:12]}  Bf6 {[%clk 0:00:19]} 22. Ne3 {[%clk 0:00:08]}  Nc5 {[%clk 0:00:18]} 23. Qb1 {[%clk 0:00:07]}  h5 {[%clk 0:00:16]} 24. Nd5 {[%clk 0:00:07]}  Qd6 {[%clk 0:00:12]} 25. Nf3 {[%clk 0:00:07]}  Ne5 {[%clk 0:00:11]} 26. Nd4 {[%clk 0:00:06]}  Ng4 {[%clk 0:00:09]} 27. f4 {[%clk 0:00:03]}  Bxd4+ {[%clk 0:00:08]} 28. Rxd4 {[%clk 0:00:04]}  Ne6 {[%clk 0:00:08]} 29. Rdd1 {[%clk 0:00:03]}  Nxf4 {[%clk 0:00:07]} 30. Nxf4 {[%clk 0:00:02]}  Qxf4 {[%clk 0:00:05]} 31. h3 {[%clk 0:00:01]}  Qf2+ {[%clk 0:00:03]} 32. Kh1 {[%clk 0:00:01]}  Ne3 {[%clk 0:00:04]} 33. Rg1 {[%clk 0:00:01]}  Rxc4 {[%clk 0:00:03]} 34. Rxc4 {[%clk 0:00:01]}  Bxc4 {[%clk 0:00:04]} 35. Qe1 {[%clk 0:00:02]}  Qxe1 {[%clk 0:00:04]} 36. Rxe1 {[%clk 0:00:03]}  Nxg2 {[%clk 0:00:05]} 37. Kxg2 {[%clk 0:00:02]}  Rd8 {[%clk 0:00:06]} 38. Kg3 {[%clk 0:00:02]}  Bxa2 {[%clk 0:00:06]} 39. Kf4 {[%clk 0:00:02]}  Be6 {[%clk 0:00:07]} 40. h4 {[%clk 0:00:02]}  Rd3 {[%clk 0:00:07]} 41. Ra1 {[%clk 0:00:03]}  a5 {[%clk 0:00:07]} 42. Rb1 {[%clk 0:00:03]}  Rb3 {[%clk 0:00:08]} 43. Rd1 {[%clk 0:00:03]}  a4 {[%clk 0:00:09]} 44. Rd8+ {[%clk 0:00:04]}  Kh7 {[%clk 0:00:09]} 45. Ra8 {[%clk 0:00:05]}  a3 {[%clk 0:00:09]} 46. Ke5 {[%clk 0:00:05]}  a2 {[%clk 0:00:09]} 47. Rxa2 {[%clk 0:00:02]}  Rb5+ {[%clk 0:00:09]} 0-1


[Site "https://www.chess.com"]

[Event "Titled Tuesday Blitz May 23 Early 2023"]
[White "Khromkin, Andrey"]
[Black "Hartikainen, Jarmo"]
[WhiteFideId "4154126"]
[BlackFideId "503134"]
[WhiteElo "2427"]
[BlackElo "2088"]
[Result "1-0"]
[Round "02"]
[TimeControl "180+2"]
[Date "2023.05.23"]
[WhiteClock "0:01:51"]
[BlackClock "0:00:20"]

1. d4 {[%clk 0:03:00]}  Nf6 {[%clk 0:02:59]} 2. c4 {[%clk 0:02:58]}  g6 {[%clk 0:02:59]} 3. Nf3 {[%clk 0:02:59]}  Bg7 {[%clk 0:02:59]} 4. Nc3 {[%clk 0:03:00]}  d5 {[%clk 0:02:59]} 5. g3 {[%clk 0:03:00]}  O-O {[%clk 0:02:58]} 6. cxd5 {[%clk 0:03:00]}  Nxd5 {[%clk 0:02:57]} 7. Bg2 {[%clk 0:03:01]}  c5 {[%clk 0:02:54]} 8. O-O {[%clk 0:03:00]}  cxd4 {[%clk 0:02:53]} 9. Nxd4 {[%clk 0:02:59]}  Nxc3 {[%clk 0:02:51]} 10. bxc3 {[%clk 0:03:00]}  e5 {[%clk 0:02:50]} 11. Nb5 {[%clk 0:03:00]}  Nc6 {[%clk 0:02:31]} 12. Ba3 {[%clk 0:02:58]}  Re8 {[%clk 0:02:15]} 13. Nd6 {[%clk 0:02:57]}  Re6 {[%clk 0:02:09]} 14. Bd5 {[%clk 0:02:57]}  Rxd6 {[%clk 0:01:49]} 15. Bxd6 {[%clk 0:02:55]}  Bh3 {[%clk 0:01:48]} 16. Bg2 {[%clk 0:02:48]}  Bxg2 {[%clk 0:01:47]} 17. Kxg2 {[%clk 0:02:49]}  e4 {[%clk 0:01:47]} 18. Rb1 {[%clk 0:02:45]}  b6 {[%clk 0:01:42]} 19. Qd5 {[%clk 0:02:36]}  Na5 {[%clk 0:01:32]} 20. Rfd1 {[%clk 0:02:34]}  Rc8 {[%clk 0:01:31]} 21. Qxe4 {[%clk 0:02:31]}  Bxc3 {[%clk 0:00:55]} 22. Bb4 {[%clk 0:02:06]}  Qc7 {[%clk 0:00:55]} 23. Rbc1 {[%clk 0:01:57]}  Qb7 {[%clk 0:00:27]} 24. Qxb7 {[%clk 0:01:54]}  Nxb7 {[%clk 0:00:25]} 25. Rxc3 {[%clk 0:01:53]}  Rxc3 {[%clk 0:00:20]} 26. Bxc3 {[%clk 0:01:51]} 1-0


[Site "https://www.chess.com"]

[Event "Titled Tuesday Blitz May 23 Early 2023"]
[White "Kriti Mayur Patel"]
[Black "Zacurdajev, Dmitry"]
[WhiteFideId "35061780"]
[BlackFideId "4196309"]
[WhiteElo "1306"]
[BlackElo "2240"]
[Result "0-1"]
[Round "02"]
[TimeControl "180+2"]
[Date "2023.05.23"]
[WhiteClock "0:00:48"]
[BlackClock "0:01:49"]

1. e4 {[%clk 0:03:00]}  c6 {[%clk 0:02:58]} 2. d4 {[%clk 0:03:00]}  d5 {[%clk 0:02:59]} 3. exd5 {[%clk 0:03:01]}  cxd5 {[%clk 0:03:00]} 4. Bd3 {[%clk 0:03:01]}  Nc6 {[%clk 0:02:58]} 5. c3 {[%clk 0:03:02]}  Nf6 {[%clk 0:02:58]} 6. Bf4 {[%clk 0:03:02]}  Bg4 {[%clk 0:02:55]} 7. f3 {[%clk 0:03:03]}  Bh5 {[%clk 0:02:55]} 8. Ne2 {[%clk 0:03:03]}  e6 {[%clk 0:02:55]} 9. O-O {[%clk 0:03:03]}  Bg6 {[%clk 0:02:53]} 10. Bg3 {[%clk 0:03:03]}  Bd6 {[%clk 0:02:53]} 11. Nd2 {[%clk 0:03:00]}  Bxg3 {[%clk 0:02:51]} 12. Bxg6 {[%clk 0:02:49]}  Bxh2+ {[%clk 0:02:47]} 13. Kxh2 {[%clk 0:02:49]}  hxg6+ {[%clk 0:02:48]} 14. Kg1 {[%clk 0:02:49]}  Qc7 {[%clk 0:02:39]} 15. f4 {[%clk 0:02:42]}  Ng4 {[%clk 0:02:37]} 16. Rf3 {[%clk 0:02:39]}  O-O-O {[%clk 0:02:24]} 17. Rc1 {[%clk 0:02:33]}  Qe7 {[%clk 0:02:01]} 18. c4 {[%clk 0:02:28]}  Qh4 {[%clk 0:01:56]} 19. Ng3 {[%clk 0:02:14]}  Nxd4 {[%clk 0:01:49]} 20. cxd5+ {[%clk 0:02:11]}  Kb8 {[%clk 0:01:50]} 21. Rd3 {[%clk 0:00:50]}  Qh2+ {[%clk 0:01:47]} 22. Kf1 {[%clk 0:00:48]}  Qh1+ {[%clk 0:01:48]} 23. Nxh1 {[%clk 0:00:48]}  Rxh1# {[%clk 0:01:49]} 0-1


[Site "https://www.chess.com"]

[Event "Titled Tuesday Blitz May 23 Early 2023"]
[White "Vargas Rodriguez, Wilver"]
[Black "Gatterer, Florian"]
[WhiteFideId "3509672"]
[BlackFideId "811688"]
[WhiteElo "2246"]
[BlackElo "2221"]
[Result "1/2-1/2"]
[Round "02"]
[TimeControl "180+2"]
[Date "2023.05.23"]
[WhiteClock "0:02:39"]
[BlackClock "0:02:47"]

1. Nf3 {[%clk 0:03:00]}  g6 {[%clk 0:02:58]} 2. d4 {[%clk 0:02:55]}  Bg7 {[%clk 0:02:57]} 3. Bf4 {[%clk 0:02:55]}  Nf6 {[%clk 0:02:56]} 4. c3 {[%clk 0:02:53]}  d6 {[%clk 0:02:53]} 5. h3 {[%clk 0:02:52]}  O-O {[%clk 0:02:52]} 6. e3 {[%clk 0:02:53]}  b6 {[%clk 0:02:52]} 7. Be2 {[%clk 0:02:51]}  Bb7 {[%clk 0:02:52]} 8. a4 {[%clk 0:02:51]}  a6 {[%clk 0:02:50]} 9. O-O {[%clk 0:02:50]}  Nbd7 {[%clk 0:02:50]} 10. Bh2 {[%clk 0:02:50]}  Re8 {[%clk 0:02:50]} 11. Na3 {[%clk 0:02:39]}  Ne4 {[%clk 0:02:47]} 1/2-1/2


[Site "https://www.chess.com"]